bitfinex/quotes_SOLUSD_20260105
["timestamp","ask_amount","ask_price","bid_price","bid_amount"]
[1767632071279,3.88235578,135.25,135.22,0.7015721]
[1767632072482,3.78335578,135.23,135.2,0.70304086]
[1767632072687,3.78335578,135.22,135.2,0.70304086]
[1767632073996,11.17871958,135.22,135.18,0.70304086]
[1767632074164,11.74891568,135.22,135.18,0.70304086]
[1767632074372,3.78335578,135.21,135.18,0.70304086]
[1767632074689,3.72335577,135.21,135.18,0.70304086]
[1767632074885,7.9655599,135.22,135.18,0.70304086]
[1767632075084,3.78335578,135.21,135.18,0.70304086]
[1767632076189,11.75750658,135.24,135.18,0.70304086]
[1767632077681,3.78335578,135.23,135.18,0.70304086]
[1767632079588,11.75750658,135.24,135.19,0.70304086]
[1767632079786,4.36307051,135.24,135.19,0.70304086]
[1767632080089,3.88235578,135.24,135.19,0.70304086]
[1767632080274,11.27668063,135.24,135.19,0.70304086]
[1767632081484,3.78335578,135.23,135.19,0.70304086]
[1767632081992,3.78335578,135.22,135.19,0.70304086]
[1767632082997,3.78335578,135.21,135.17,20.87785213]
[1767632083201,3.78335578,135.2,135.18,0.70304086]
[1767632083380,3.78335578,135.2,135.17,13.48]
[1767632083381,3.78335578,135.2,135.17,14.18304086]
[1767632083907,7.97507251,135.22,135.18,0.70304086]
[1767632084072,3.78335578,135.21,135.18,0.70304086]
[1767632088082,0.10375907,135.18,135.15,0.2]
[1767632088270,3.78335578,135.16,135.13,14.18304086]
[1767632088475,3.78335578,135.15,135.13,13.48]
[1767632088897,3.78335578,135.15,135.13,14.18304086]
[1767632089403,22.15173025,135.24,135.16,13.86542837]
[1767632089698,4.48204034,135.28,135.21,0.34528527]
[1767632090002,4.48204034,135.28,135.2,5.51529]
[1767632090003,0.69868456,135.27,135.22,48.89979907]
[1767632090296,0.69868456,135.27,135.22,12.25674862]
[1767632090693,7.88172698,135.29,135.22,12.25674862]
[1767632090905,7.88172698,135.29,135.23,0.70304086]
[1767632092677,0.69868456,135.28,135.23,0.70304086]
[1767632095183,18.47411641,135.33,135.24,0.7202288]
[1767632095488,7.38989062,135.32,135.24,0.7202288]
[1767632096391,28.28644134,135.33,135.24,0.7202288]
[1767632096800,2.42298037,135.31,135.25,0.7202288]
[1767632097183,0.66009687,135.3,135.25,0.7202288]
[1767632099823,0.66009687,135.3,135.26,0.68005891]
[1767632100319,0.66009687,135.3,135.25,0.68005891]
[1767632100494,0.59127625,135.29,135.25,0.68005891]
[1767632100686,0.59127625,135.29,135.24,8.08868064]
[1767632101292,0.59127625,135.29,135.24,0.6944972]
[1767632101843,0.65940866,135.28,135.22,21.56978692]
[1767632102440,0.59195758,135.27,135.22,14.1744972]
[1767632103308,0.59195758,135.27,135.23,0.6944972]
[1767632105710,0.59195758,135.27,135.22,20.87523885]
[1767632105934,0.65873414,135.26,135.22,13.48]
[1767632106137,0.65873414,135.26,135.21,0.6944972]
[1767632107224,0.59262535,135.25,135.2,0.6944972]
[1767632107732,0.59262535,135.25,135.19,0.6944972]
[1767632108116,0.65807305,135.24,135.19,0.6944972]
[1767632113734,0.65807305,135.24,135.2,0.6944972]
[1767632114031,2.42298037,135.25,135.2,0.6944972]
[1767632114032,0.69995596,135.25,135.2,0.6944972]
[1767632115235,0.69995596,135.26,135.21,0.6944972]
[1767632115420,0.69995596,135.28,135.22,0.6944972]
[1767632115615,0.69995596,135.29,135.24,0.6944972]
[1767632115836,0.69995596,135.29,135.25,0.6944972]
[1767632120743,0.69995596,135.27,135.22,0.6944972]
[1767632120933,0.69995596,135.27,135.22,14.1744972]
[1767632121242,0.69995596,135.27,135.23,0.6944972]
[1767632123637,0.69847456,135.25,135.2,0.6944972]
[1767632123841,0.55328233,135.24,135.2,0.6944972]
[1767632124143,0.55328233,135.24,135.17,13.48]
[1767632124144,0.69702264,135.23,135.19,0.6944972]
[1767632126426,0.69995596,135.24,135.19,0.6944972]
[1767632128452,0.55181575,135.23,135.19,0.6944972]
[1767632135964,121.6815554,135.27,135.21,0.68211592]
[1767632135965,0.66818147,135.26,135.21,0.68211592]
[1767632136765,0.66818147,135.27,135.21,0.68211592]
[1767632138058,0.66818147,135.27,135.23,0.68211592]
[1767632138866,0.66818147,135.29,135.23,0.68211592]
[1767632140167,0.66818147,135.29,135.25,0.68211592]
[1767632142645,0.58327249,135.28,135.24,14.16211592]
[1767632142843,0.58327249,135.28,135.24,0.68211592]
[1767632143164,9.81451923,135.29,135.21,0.68211592]
[1767632143165,0.58411309,135.26,135.21,0.68211592]
[1767632143568,0.58411309,135.26,135.22,0.68211592]
[1767632147243,0.58411309,135.26,135.2,20.87623469]
[1767632147244,0.58493696,135.24,135.2,0.68211592]
[1767632148771,0.66818147,135.25,135.2,0.68211592]
[1767632149171,0.58327249,135.24,135.2,0.68211592]
[1767632149875,0.66818147,135.25,135.2,0.68211592]
[1767632152471,0.58327249,135.24,135.2,0.68211592]
[1767632152667,0.58327249,135.24,135.19,14.16211592]
[1767632152977,0.58327249,135.24,135.2,0.68211592]
[1767632154869,0.70886214,135.25,135.2,0.68211592]
[1767632155662,0.70886214,135.26,135.21,0.65467247]
[1767632157862,0.70886214,135.3,135.22,0.65467247]
[1767632158076,0.70886214,135.3,135.21,7.39561115]
[1767632158077,0.70886214,135.3,135.24,0.65467247]
[1767632159500,0.70886214,135.3,135.25,0.65467247]
[1767632161491,4.3318483,135.29,135.24,0.70261209]
[1767632161663,0.55651829,135.24,135.2,0.70261209]
[1767632161867,0.43651817,135.24,135.2,0.70261209]
[1767632162182,3.78884967,135.25,135.2,0.70261209]
[1767632163982,4.48547063,135.25,135.2,0.70261209]
[1767632164375,0.69662096,135.25,135.21,0.70261209]
[1767632164577,4.48286759,135.28,135.21,0.70261209]
[1767632164889,0.69401792,135.28,135.23,0.70261209]
[1767632165274,0.43889429,135.27,135.23,0.70261209]
[1767632167474,0.43889429,135.27,135.2,0.70261209]
[1767632167658,0.43889429,135.27,135.21,0.70261209]
[1767632167659,0.69146668,135.26,135.21,0.70261209]
[1767632167866,0.69146668,135.26,135.22,0.70261209]
[1767632173573,0.69146668,135.26,135.21,7.39589173]
[1767632173574,0.69146668,135.26,135.21,0.70261209]
[1767632173887,0.43631728,135.27,135.22,0.70261209]
[1767632174078,0.43631728,135.27,135.21,7.39554834]
[1767632174079,3.78884967,135.26,135.21,0.70261209]
[1767632174269,0.43889429,135.25,135.21,0.70261209]
[1767632175092,0.43889429,135.25,135.2,0.70261209]
[1767632176299,0.43889429,135.25,135.21,0.70261209]
[1767632182398,4.22774396,135.25,135.21,0.70261209]
[1767632182705,0.43889429,135.25,135.21,0.70261209]
[1767632183105,0.69146668,135.24,135.21,0.70261209]
[1767632183290,0.44142002,135.23,135.19,0.70261209]
[1767632184007,4.48547063,135.24,135.19,0.70261209]
[1767632185908,0.69662096,135.24,135.19,0.70261209]
[1767632186112,4.48547063,135.24,135.19,0.70261209]
[1767632187011,0.43631728,135.23,135.19,0.70261209]
[1767632187385,4.22774396,135.21,135.18,0.70261209]
[1767632187711,4.42031636,135.2,135.16,0.70261209]
[1767632188208,18.48488565,135.25,135.17,0.70261209]
[1767632188407,3.78884967,135.23,135.17,0.70261209]
[1767632188590,24.66311172,135.24,135.17,0.70261209]
[1767632189496,0.69662096,135.23,135.17,8.10067158]
[1767632190513,4.48547063,135.23,135.18,0.70261209]
[1767632190700,0.69662096,135.23,135.18,0.70261209]
[1767632191008,4.48547063,135.23,135.18,0.70261209]
[1767632191401,11.88043455,135.23,135.18,0.70261209]
[1767632191781,0.69342392,135.21,135.17,0.67052676]
[1767632191985,4.47914017,135.19,135.15,0.67052676]
[1767632192690,0.6902905,135.19,135.15,0.67052676]
[1767632192887,0.38318445,135.18,135.15,0.67052676]
[1767632193090,3.78884967,135.18,135.14,0.67052676]
[1767632193407,3.78884967,135.17,135.13,8.48633144]
[1767632193708,3.78884967,135.18,135.14,0.67052676]
[1767632194995,4.49175576,135.18,135.14,0.67052676]
[1767632197203,0.70290609,135.18,135.14,0.67052676]
[1767632197418,18.490271,135.21,135.14,0.67052676]
[1767632197419,4.49175576,135.19,135.14,0.67052676]
[1767632198317,0.31129502,135.18,135.14,0.67052676]
[1767632198896,4.10014469,135.18,135.14,0.67052676]
[1767632202224,0.31129502,135.18,135.14,0.67052676]
[1767632203310,17.97175576,135.2,135.15,0.67052676]
[1767632203619,0.70290609,135.2,135.15,0.67052676]
[1767632205223,0.31129502,135.19,135.15,0.67052676]
[1767632206422,0.69898998,135.18,135.15,0.67052676]
[1767632206618,0.69898998,135.18,135.14,0.67052676]
[1767632206942,0.6951518,135.16,135.13,8.48633144]
[1767632207121,0.31897177,135.15,135.13,8.48633144]
[1767632208224,7.70860365,135.19,135.14,0.67052676]
[1767632208438,0.69898998,135.18,135.14,0.67052676]
[1767632213310,0.67955217,135.2,135.15,0.68654404]
[1767632214009,0.67955217,135.21,135.15,0.68654404]
[1767632214616,0.67955217,135.21,135.16,0.68654404]
[1767632216125,14.15955217,135.22,135.16,0.68654404]
[1767632216643,14.15955217,135.22,135.17,0.68654404]
[1767632216644,0.3344154,135.21,135.17,0.68654404]
[1767632217702,13.48,135.22,135.18,0.68654404]
[1767632218115,8.07462665,135.23,135.18,0.68654404]
[1767632218116,0.67955217,135.23,135.18,0.68654404]
[1767632218330,0.67955217,135.24,135.18,0.68654404]
[1767632219724,0.67955217,135.24,135.2,0.68654404]
[1767632219925,14.15955217,135.25,135.2,0.68654404]
[1767632220727,13.48,135.25,135.2,0.68654404]
[1767632221222,0.67955217,135.26,135.2,0.68654404]
[1767632222031,14.15125163,135.28,135.22,0.6859976]
[1767632222428,3.09394298,135.26,135.22,0.6859976]
[1767632222950,0.66796544,135.26,135.22,0.6859976]
[1767632224331,0.67125163,135.27,135.23,0.6859976]
[1767632226828,16.57722917,135.28,135.23,0.6859976]
[1767632227325,0.34263294,135.27,135.23,0.6859976]
[1767632228143,2.42597754,135.26,135.19,0.6859976]
[1767632228343,0.34588626,135.25,135.21,0.6859976]
[1767632228546,0.34588626,135.25,135.22,0.6859976]
[1767632228750,21.5434505,135.28,135.22,0.6859976]
[1767632228934,14.15125163,135.28,135.22,0.6859976]
[1767632229129,0.34263294,135.27,135.22,0.6859976]
[1767632229854,0.34588626,135.25,135.21,0.6859976]
[1767632230847,0.67125163,135.26,135.21,0.6859976]
[1767632232356,3.09722917,135.26,135.21,0.6859976]
[1767632233941,3.09722917,135.26,135.22,0.6859976]
[1767632234461,0.67125163,135.26,135.22,0.6859976]
[1767632237859,3.09722917,135.26,135.22,0.6859976]
[1767632238356,0.67125163,135.26,135.22,0.6859976]
[1767632239159,8.06360444,135.28,135.22,0.6859976]
[1767632239361,2.42597754,135.27,135.22,0.6859976]
[1767632239546,2.76861048,135.27,135.22,0.6859976]
[1767632239746,0.67125163,135.28,135.23,0.6859976]
[1767632240136,135.15699737,135.31,135.24,0.6859976]
[1767632240137,10.48835208,135.3,135.24,0.6859976]
[1767632240634,0.34263294,135.29,135.24,0.6859976]
[1767632242364,0.34263294,135.29,135.25,0.6859976]
[1767632243261,0.67125163,135.32,135.26,0.6859976]
[1767632244959,3.09722917,135.32,135.27,0.6859976]
[1767632246167,0.34263294,135.31,135.27,0.6859976]
[1767632246370,2.76861048,135.31,135.27,0.6859976]
[1767632249958,0.34263294,135.31,135.27,0.6859976]
[1767632252466,0.34263294,135.31,135.23,18.99529]
[1767632252467,0.34588626,135.29,135.25,8.11309584]
[1767632252656,0.34588626,135.29,135.25,0.71959308]
[1767632252657,0.66474465,135.28,135.25,0.71959308]
[1767632252855,0.66474465,135.28,135.24,7.39396654]
[1767632252856,3.09072219,135.28,135.24,0.71959308]
[1767632253043,3.08756549,135.26,135.23,0.71959308]
[1767632253241,3.08756549,135.26,135.22,13.48]
[1767632253242,3.08756549,135.26,135.22,0.71959308]
[1767632253667,2.72410213,135.27,135.23,0.71959308]
[1767632253870,0.29812459,135.27,135.23,0.71959308]
[1767632254066,2.72410213,135.27,135.23,0.71959308]
[1767632255565,2.72410213,135.27,135.24,0.71959308]
[1767632255948,2.72410213,135.27,135.23,7.39449653]
[1767632255949,2.42597754,135.27,135.23,0.71959308]
[1767632256149,2.42597754,135.27,135.22,7.39521823]
[1767632256150,3.13800625,135.26,135.22,0.71959308]
[1767632257875,0.71202871,135.26,135.22,0.71959308]
[1767632259774,0.71202871,135.26,135.22,8.11488579]
[1767632260151,3.1421871,135.27,135.23,0.71959308]
[1767632260349,2.42597754,135.27,135.23,0.71959308]
[1767632260553,2.72410213,135.27,135.23,0.71959308]
[1767632261674,0.71202871,135.26,135.23,0.71959308]
[1767632262177,3.13800625,135.26,135.23,0.71959308]
[1767632265784,3.1339086,135.24,135.2,0.71959308]
[1767632265965,3.12989249,135.22,135.19,0.71959308]
[1767632266287,3.1421871,135.23,135.19,0.71959308]
[1767632266485,2.42597754,135.22,135.19,0.71959308]
[1767632267775,3.13800625,135.21,135.16,14.19959308]
[1767632267979,3.13800625,135.21,135.17,0.71959308]
[1767632267980,0.71202871,135.21,135.17,0.71959308]
[1767632268174,2.42597754,135.2,135.17,0.71959308]
[1767632268573,0.30226363,135.2,135.17,0.71959308]
[1767632268774,0.71620956,135.21,135.17,0.71959308]
[1767632269887,0.71620956,135.21,135.17,8.11753207]
[1767632270090,3.1421871,135.22,135.18,0.71959308]
[1767632273589,2.42597754,135.21,135.18,0.71959308]
[1767632274590,3.79125626,135.21,135.18,0.71959308]
[1767632274892,4.49604771,135.2,135.16,0.69754899]
[1767632275878,36.96719389,135.26,135.16,0.69754899]
[1767632275879,4.10068477,135.19,135.16,0.69754899]
[1767632276080,4.49209409,135.18,135.15,0.69754899]
[1767632276591,4.48821914,135.16,135.13,8.48633144]
[1767632276890,4.48821914,135.16,135.13,9.18388043]
[1767632277097,0.69696288,135.16,135.13,9.18388043]
[1767632278986,4.48821914,135.16,135.13,9.18388043]
[1767632279282,3.79125626,135.15,135.13,9.18388043]
[1767632279595,4.48821914,135.16,135.13,9.18388043]
[1767632279779,11.88698267,135.16,135.13,8.48633144]
[1767632280168,4.48821914,135.16,135.13,8.48633144]
[1767632280369,11.88703262,135.16,135.13,8.48633144]
[1767632281495,4.48821914,135.16,135.13,8.48633144]
[1767632281883,4.10843506,135.15,135.13,8.48633144]
[1767632282086,4.4844213,135.14,135.13,8.16215097]
[1767632282402,4.3844213,135.14,135.1,0.66557448]
[1767632282899,7.39868984,135.16,135.09,8.80306668]
[1767632282900,4.37947964,135.12,135.09,8.80306668]
[1767632283285,4.37947964,135.12,135.09,8.1374922]
[1767632283490,3.79125626,135.11,135.09,8.1374922]
[1767632283701,4.37947964,135.12,135.09,8.1374922]
[1767632284496,3.79125626,135.11,135.09,8.1374922]
[1767632285002,4.37947964,135.12,135.09,8.1374922]
[1767632285907,0.59316504,135.13,135.09,8.80306668]
[1767632286080,3.79125626,135.12,135.09,8.80306668]
[1767632288900,3.89025626,135.12,135.09,8.80306668]
[1767632289205,3.89025626,135.12,135.09,8.1374922]
[1767632289206,3.79125626,135.11,135.09,8.1374922]
[1767632289408,4.37947964,135.11,135.09,8.1374922]
[1767632289587,103.2,135.17,135.1,0.66557448]
[1767632289781,110.59863865,135.16,135.1,0.66557448]
[1767632290012,7.39822705,135.17,135.1,0.66557448]
[1767632290210,3.79125626,135.28,135.12,0.66557448]
[1767632290211,4.3844213,135.19,135.12,0.66557448]
[1767632290513,4.3844213,135.19,135.13,0.66557448]
[1767632291208,7.98979369,135.2,135.14,0.66557448]
[1767632291704,11.78104995,135.2,135.14,0.66557448]
[1767632293231,7.98979369,135.2,135.14,0.66557448]
[1767632293398,0.59316504,135.2,135.15,0.66557448]
[1767632293905,11.78094617,135.2,135.15,0.66557448]
[1767632294292,4.3844213,135.2,135.15,0.66557448]
[1767632294617,0.59316504,135.2,135.15,0.66557448]
[1767632294805,17.8644213,135.21,135.16,0.66557448]
[1767632295004,3.79125626,135.21,135.16,0.66557448]
[1767632295203,0.59316504,135.22,135.16,0.66557448]
[1767632295421,11.77942756,135.23,135.17,0.66557448]
[1767632295717,3.79125626,135.22,135.17,0.66557448]
[1767632296425,7.9881713,135.23,135.17,0.66557448]
[1767632296601,3.79125626,135.22,135.17,0.66557448]
[1767632296800,3.89025626,135.22,135.17,0.66557448]
[1767632299419,3.89025626,135.22,135.18,0.66557448]
[1767632300115,3.79125626,135.22,135.18,0.66557448]
[1767632301117,3.79125626,135.23,135.19,0.66557448]
[1767632301426,21.467095,135.25,135.19,0.66557448]
[1767632301725,3.79125626,135.23,135.19,0.66557448]
[1767632302799,3.79125626,135.24,135.2,0.66557448]
[1767632303120,3.79125626,135.25,135.2,0.66557448]
[1767632303322,20.87207569,135.28,135.2,0.66557448]
[1767632303323,3.79125626,135.24,135.2,0.66557448]
[1767632303819,3.79125626,135.23,135.2,0.66557448]
[1767632305427,4.37947964,135.24,135.2,0.66557448]
[1767632305724,3.8951485,135.23,135.2,0.66557448]
[1767632306927,3.89994338,135.21,135.18,0.66557448]
[1767632307431,0.57863314,135.2,135.16,8.06398233]
[1767632307800,4.3844213,135.21,135.17,0.66557448]
[1767632308011,0.59316504,135.21,135.17,0.66557448]
[1767632309224,4.3844213,135.21,135.17,0.66557448]
[1767632309422,0.099,135.2,135.16,0.66557448]
[1767632311131,0.59316504,135.21,135.17,0.69499107]
[1767632311937,4.3844213,135.21,135.17,0.69499107]
[1767632313124,0.099,135.2,135.16,0.69499107]
[1767632314441,4.3844213,135.25,135.18,0.69499107]
[1767632315141,4.3844213,135.26,135.2,0.69499107]
[1767632315346,0.59316504,135.26,135.2,0.69499107]
[1767632315533,0.099,135.25,135.2,0.69499107]
[1767632317222,0.099,135.25,135.21,8.09089373]
[1767632317424,4.3844213,135.27,135.22,0.69499107]
[1767632318341,11.77713618,135.27,135.22,0.69499107]
[1767632318545,3.79125626,135.26,135.22,0.69499107]
[1767632321240,3.89025626,135.26,135.22,0.69499107]
[1767632321440,0.099,135.26,135.22,0.69499107]
[1767632322240,3.89025626,135.26,135.22,0.69499107]
[1767632322947,0.099,135.26,135.22,0.69499107]
[1767632323328,11.77617913,135.29,135.23,0.69499107]
[1767632323529,7.98492287,135.29,135.23,0.69499107]
[1767632323739,0.099,135.28,135.23,0.69499107]
[1767632325023,0.099,135.28,135.23,8.0897072]
[1767632325219,0.099,135.28,135.24,0.69499107]
[1767632327064,0.59316504,135.29,135.24,0.69499107]
[1767632327347,3.89025626,135.28,135.24,0.69499107]
[1767632329827,11.28233259,135.28,135.24,0.69499107]
[1767632330344,0.10389224,135.26,135.22,0.69499107]
[1767632330853,4.3844213,135.27,135.23,0.69499107]
[1767632331049,11.77649763,135.28,135.23,0.69499107]
[1767632331256,0.099,135.27,135.23,0.69499107]
[1767632332943,3.89025626,135.27,135.23,0.69499107]
[1767632333438,0.58822338,135.26,135.23,0.69499107]
[1767632333841,0.58822338,135.26,135.21,0.66163669]
[1767632334043,0.10389224,135.25,135.21,0.66163669]
[1767632335368,0.10868712,135.23,135.19,0.66163669]
[1767632337239,7.9875967,135.24,135.19,0.66163669]
[1767632338746,0.099,135.23,135.19,0.66163669]
[1767632340940,2.5243703,135.23,135.19,0.66163669]
[1767632341960,10.412967,135.24,135.19,0.66163669]
[1767632342443,2.5243703,135.23,135.19,0.66163669]
[1767632342949,0.099,135.23,135.19,0.66163669]
[1767632343463,10.412967,135.24,135.19,0.66163669]
[1767632343640,0.099,135.23,135.19,0.66163669]
[1767632347367,9.81980196,135.24,135.19,0.66163669]
[1767632347543,9.91880196,135.24,135.19,0.66163669]
[1767632349365,0.10389224,135.22,135.19,0.66163669]
[1767632349863,0.10389224,135.22,135.17,8.05050708]
[1767632350566,2.4253703,135.23,135.18,0.65264267]
[1767632350567,3.01853534,135.23,135.18,0.65264267]
[1767632351751,10.41336116,135.23,135.18,0.65264267]
[1767632352070,2.5243703,135.22,135.18,0.65264267]
[1767632352758,2.5243703,135.22,135.16,31.97609642]
[1767632352759,2.52926254,135.2,135.16,0.65264267]
[1767632352949,0.10389224,135.2,135.16,0.65264267]
[1767632353269,2.52926254,135.2,135.16,0.65264267]
[1767632354066,7.39500184,135.23,135.17,0.65264267]
[1767632354268,9.91937214,135.23,135.17,0.65264267]
[1767632354651,0.58822338,135.22,135.17,0.65264267]
[1767632354952,10.40895621,135.22,135.17,0.65264267]
[1767632355165,2.52926254,135.21,135.17,0.65264267]
[1767632356559,2.4253703,135.2,135.17,0.65264267]
[1767632357096,3.00875037,135.2,135.17,0.65264267]
[1767632357265,3.00875037,135.2,135.16,0.65264267]
[1767632358053,2.4253703,135.19,135.16,0.65264267]
[1767632358368,10.40540722,135.2,135.16,0.65264267]
[1767632359953,0.58338007,135.2,135.16,0.65264267]
[1767632360154,3.00875037,135.2,135.16,0.65264267]
[1767632360970,9.82140427,135.21,135.16,0.65264267]
[1767632361474,10.40962765,135.21,135.16,0.65264267]
[1767632363876,0.58822338,135.21,135.16,0.65264267]
[1767632364078,2.4253703,135.21,135.16,0.65264267]
[1767632364272,7.98875734,135.22,135.17,0.65264267]
[1767632364595,2.5243703,135.21,135.17,0.65264267]
[1767632365163,3.01853534,135.22,135.17,0.65264267]
[1767632368386,23.29983167,135.24,135.18,0.65264267]
[1767632368879,21.46762641,135.24,135.18,0.65264267]
[1767632369079,2.4253703,135.23,135.19,0.65264267]
[1767632373962,2.4253703,135.22,135.19,0.65264267]
[1767632375461,2.5243703,135.23,135.19,0.65264267]
[1767632379768,2.4253703,135.23,135.2,0.67154441]
[1767632380496,105.7243703,135.25,135.2,0.67154441]
[1767632380662,103.299,135.25,135.2,0.67154441]
[1767632380862,2.4253703,135.24,135.21,0.67154441]
[1767632381064,0.099,135.25,135.21,0.67154441]
[1767632381280,21.46607283,135.27,135.21,0.67154441]
[1767632381483,2.4253703,135.25,135.21,0.67154441]
[1767632382571,0.099,135.26,135.21,0.67154441]
[1767632382792,2.4253703,135.25,135.21,0.67154441]
[1767632383698,0.58822338,135.26,135.22,0.67154441]
[1767632383993,16.0043703,135.27,135.22,0.67154441]
[1767632384572,106.21853534,135.28,135.23,0.67154441]
[1767632385194,3.01853534,135.28,135.23,0.67154441]
[1767632389294,0.099,135.27,135.23,0.67154441]
[1767632389773,3.01853534,135.28,135.23,0.67154441]
[1767632390986,10.41078758,135.28,135.23,0.67154441]
[1767632391585,2.5243703,135.27,135.23,0.67154441]
[1767632391978,2.5243703,135.27,135.22,7.39494535]
[1767632391979,3.01359368,135.26,135.22,8.06648976]
[1767632392178,0.58822338,135.26,135.22,8.06648976]
[1767632392380,3.01359368,135.26,135.22,8.06648976]
[1767632392580,3.01359368,135.26,135.22,0.67154441]
[1767632393492,3.00875037,135.24,135.21,0.6593743]
[1767632393702,3.00875037,135.24,135.2,14.1393743]
[1767632396602,4.37269504,135.24,135.2,14.1393743]
[1767632400101,0.58338007,135.24,135.21,0.6593743]
[1767632400404,0.59316504,135.25,135.21,0.6593743]
[1767632400603,0.099,135.24,135.21,0.6593743]
[1767632401006,107.58171424,135.28,135.21,0.6593743]
[1767632401777,11.77399954,135.28,135.21,0.6593743]
[1767632402188,11.77399954,135.28,135.23,0.69633473]
[1767632403379,3.7885492,135.27,135.23,0.69633473]
[1767632403582,0.10868712,135.23,135.19,7.3964959]
[1767632403806,3.89723632,135.23,135.19,0.69633473]
[1767632405781,4.36718234,135.22,135.18,0.69633473]
[1767632405988,3.7885492,135.21,135.18,0.69633473]
[1767632406590,3.90193578,135.21,135.17,0.69633473]
[1767632406792,3.7885492,135.2,135.17,0.69633473]
[1767632406982,3.90193578,135.21,135.17,0.69633473]
[1767632407805,3.7885492,135.2,135.17,0.69633473]
[1767632408004,7.50946232,135.21,135.16,0.69633473]
[1767632408005,3.7885492,135.18,135.16,0.69633473]
[1767632408216,4.35796999,135.18,135.15,0.69633473]
[1767632408793,3.7885492,135.18,135.15,0.69633473]
[1767632409019,0.59316504,135.19,135.15,0.69633473]
[1767632409020,0.59316504,135.2,135.15,0.69633473]
[1767632409190,0.59316504,135.2,135.16,0.69633473]
[1767632410413,7.39426205,135.24,135.17,0.69633473]
[1767632410616,17.2685492,135.23,135.17,0.69633473]
[1767632410915,17.86171424,135.23,135.17,0.69633473]
[1767632411109,0.099,135.22,135.17,0.69633473]
[1767632411811,0.099,135.22,135.18,0.69633473]
[1767632412989,14.07316504,135.23,135.18,0.69633473]
[1767632413391,17.86171424,135.23,135.18,0.69633473]
[1767632413597,0.099,135.22,135.18,0.69633473]
[1767632414498,17.2685492,135.23,135.18,0.69633473]
[1767632414803,13.48,135.23,135.19,0.69633473]
[1767632415319,3.8875492,135.26,135.19,0.69633473]
[1767632415518,0.099,135.26,135.19,0.69633473]
[1767632416316,0.099,135.26,135.21,0.69633473]
[1767632416718,11.18117136,135.27,135.21,0.69633473]
[1767632416719,0.59316504,135.27,135.21,0.69633473]
[1767632417922,0.099,135.26,135.22,0.69633473]
[1767632418106,4.37677258,135.25,135.21,0.69633473]
[1767632419135,0.58822338,135.25,135.21,0.69633473]
[1767632420208,0.59316504,135.26,135.22,0.69633473]
[1767632420406,11.77397623,135.28,135.22,0.69633473]
[1767632420813,7.98542703,135.28,135.22,0.69633473]
[1767632421019,0.099,135.27,135.22,0.69633473]
[1767632421212,3.8875492,135.28,135.22,0.69633473]
[1767632421602,0.58822338,135.27,135.22,0.69633473]
[1767632422007,4.38171424,135.28,135.22,0.69633473]
[1767632422225,4.38171424,135.28,135.23,0.69633473]
[1767632422608,0.59316504,135.28,135.23,0.69633473]
[1767632422930,0.59316504,135.29,135.23,0.69633473]
[1767632424223,0.59316504,135.29,135.25,0.69633473]
[1767632425217,4.38171424,135.3,135.25,0.69633473]
[1767632425519,4.38171424,135.3,135.26,0.69633473]
[1767632427833,4.38171424,135.3,135.23,18.48650408]
[1767632427834,0.58822338,135.28,135.24,8.09053463]
[1767632428032,0.58822338,135.28,135.25,0.69633473]
[1767632428335,0.59316504,135.29,135.25,0.69633473]
[1767632429436,4.38171424,135.31,135.26,0.69633473]
[1767632429938,11.77217163,135.31,135.26,0.69633473]
[1767632430125,3.8875492,135.3,135.26,0.69633473]
[1767632430325,0.58822338,135.29,135.26,0.69633473]
[1767632430531,0.10389224,135.28,135.25,0.69633473]
[1767632430831,4.38171424,135.29,135.25,0.69633473]
[1767632432043,0.58822338,135.27,135.23,0.6577564]
[1767632434336,7.98498103,135.29,135.24,0.6577564]
[1767632435449,3.7885492,135.25,135.22,13.48]
[1767632435621,0.10389224,135.26,135.22,14.1377564]
[1767632435822,0.10389224,135.26,135.22,0.6577564]
[1767632436025,0.58338007,135.25,135.21,0.6577564]
[1767632436233,4.38171424,135.26,135.22,0.6577564]
[1767632436649,0.59316504,135.26,135.22,0.6577564]
[1767632436824,4.38171424,135.26,135.22,0.6577564]
[1767632438851,11.7749294,135.26,135.22,0.6577564]
[1767632439149,11.7749294,135.26,135.22,0.60709339]
[1767632439670,0.14915637,135.25,135.22,0.60709339]
[1767632439947,3.93770557,135.25,135.2,7.39623758]
[1767632440646,3.94210125,135.23,135.17,7.39788154]
[1767632440957,3.94210125,135.23,135.18,8.0549602]
[1767632441429,4.37292244,135.22,135.18,0.6577564]
[1767632441626,4.36865731,135.2,135.15,9.99974113]
[1767632441852,4.36865731,135.2,135.16,0.6577564]
[1767632442063,0.58010811,135.2,135.16,7.39861778]
[1767632442732,3.7885492,135.23,135.18,0.6577564]
[1767632443253,4.43237725,135.23,135.18,0.6577564]
[1767632443860,0.64382805,135.23,135.18,0.6577564]
[1767632444033,0.64382805,135.23,135.19,0.6577564]
[1767632444347,18.48225053,135.27,135.19,0.6577564]
[1767632444348,0.64382805,135.25,135.19,0.6577564]
[1767632445055,4.43237725,135.25,135.19,0.6577564]